[Event "***Titled Tuesday 3|2 Blitz"]
[Site "Chess.com"]
[Date "2017.02.07"]
[Round "5"]
[White "DrVelja"]
[Black "Grebeniuk-S"]
[Result "0-1"]
[WhiteElo "2504"]
[BlackElo "2448"]
[TimeControl "180+2"]
[EndTime "14:15:38 PST"]
[Termination "Grebeniuk-S won by resignation"]

1. e4 {[%clk 0:03:02]} 1... d5 {[%clk 0:03:01.1]} 2. exd5 {[%clk 0:03:02.2]}
2... Qxd5 {[%clk 0:03:03]} 3. Nc3 {[%clk 0:03:03.3]} 3... Qa5 {[%clk 0:03:03.3]}
4. g3 {[%clk 0:03:03.2]} 4... c6 {[%clk 0:03:03.6]} 5. Bg2 {[%clk 0:03:03.6]}
5... Nf6 {[%clk 0:03:05.1]} 6. h3 {[%clk 0:03:04.5]} 6... e5 {[%clk 0:03:04.4]}
7. d3 {[%clk 0:02:57.9]} 7... Be6 {[%clk 0:03:05]} 8. Nf3 {[%clk 0:02:52.3]}
8... Nbd7 {[%clk 0:03:05.6]} 9. O-O {[%clk 0:02:50.9]} 9... h6 {[%clk
0:03:06.3]} 10. d4 {[%clk 0:02:35.7]} 10... O-O-O {[%clk 0:02:49.8]} 11. Bd2
{[%clk 0:02:06.2]} 11... Qc7 {[%clk 0:02:30.5]} 12. Qe2 {[%clk 0:01:50.4]} 12...
Bd6 {[%clk 0:02:22.8]} 13. Be3 {[%clk 0:01:41.9]} 13... Kb8 {[%clk 0:01:50]} 14.
Rfe1 {[%clk 0:01:28.9]} 14... Rhe8 {[%clk 0:01:50.1]} 15. Rad1 {[%clk
0:01:27.5]} 15... g5 {[%clk 0:01:42.5]} 16. dxe5 {[%clk 0:00:57.2]} 16... Nxe5
{[%clk 0:01:43.3]} 17. Rxd6 {[%clk 0:00:44]} 17... Nxf3+ {[%clk 0:01:42.4]} 18.
Qxf3 {[%clk 0:00:44.6]} 18... Rxd6 {[%clk 0:01:29.9]} 19. Qxf6 {[%clk
0:00:41.6]} 19... Bxh3 {[%clk 0:01:27]} 20. Qg7 {[%clk 0:00:22.9]} 20... Bxg2
{[%clk 0:01:25.9]} 21. Kxg2 {[%clk 0:00:24.8]} 21... Rde6 {[%clk 0:01:23.8]} 22.
Rd1 {[%clk 0:00:21.7]} 22... b6 {[%clk 0:01:16.7]} 23. a4 {[%clk 0:00:20.7]}
23... f5 {[%clk 0:01:06.2]} 24. Qd4 {[%clk 0:00:16]} 24... Qe5 {[%clk
0:00:52.6]} 25. Qxe5+ {[%clk 0:00:15]} 25... Rxe5 {[%clk 0:00:54.5]} 26. Rd6
{[%clk 0:00:15.4]} 26... R5e6 {[%clk 0:00:54.8]} 27. Rd7 {[%clk 0:00:14.6]}
27... R6e7 {[%clk 0:00:53.9]} 28. Rd6 {[%clk 0:00:14.8]} 28... Re6 {[%clk
0:00:55.3]} 29. Rd7 {[%clk 0:00:15.9]} 29... R6e7 {[%clk 0:00:56.4]} 30. Rd2
{[%clk 0:00:17.4]} 30... Kb7 {[%clk 0:00:54.3]} 31. Ne2 {[%clk 0:00:18.2]} 31...
c5 {[%clk 0:00:50.8]} 32. Nc3 {[%clk 0:00:18.5]} 32... Kc6 {[%clk 0:00:50.8]}
33. Nb5 {[%clk 0:00:17.6]} 33... Rd7 {[%clk 0:00:46.6]} 34. Rxd7 {[%clk
0:00:14.8]} 34... Kxd7 {[%clk 0:00:48.5]} 35. Nxa7 {[%clk 0:00:14.2]} 35... Ra8
{[%clk 0:00:49.4]} 36. Nb5 {[%clk 0:00:15.7]} 36... Rxa4 {[%clk 0:00:50.1]} 37.
Nc3 {[%clk 0:00:16.3]} 37... Ra1 {[%clk 0:00:48.3]} 38. Nd5 {[%clk 0:00:12.6]}
38... Ra6 {[%clk 0:00:41.1]} 39. Kf3 {[%clk 0:00:10.9]} 39... Kd6 {[%clk
0:00:40.7]} 40. Nc3 {[%clk 0:00:09]} 40... Ra1 {[%clk 0:00:39.8]} 41. Ke2 {[%clk
0:00:08.1]} 41... Kc6 {[%clk 0:00:40.3]} 42. Nd1 {[%clk 0:00:06.7]} 42... b5
{[%clk 0:00:39.9]} 43. Bd2 {[%clk 0:00:07.2]} 43... Ra8 {[%clk 0:00:38.2]} 44.
Ne3 {[%clk 0:00:07.9]} 44... Re8 {[%clk 0:00:38.8]} 45. Kf3 {[%clk 0:00:08.3]}
45... Rf8 {[%clk 0:00:39]} 46. Bc3 {[%clk 0:00:09.6]} 46... f4 {[%clk
0:00:36.2]} 47. Ng4 {[%clk 0:00:04.9]} 47... fxg3+ {[%clk 0:00:36.5]} 48. Kxg3
{[%clk 0:00:05.9]} 48... h5 {[%clk 0:00:32.5]} 49. Nf6 {[%clk 0:00:05.9]} 49...
b4 {[%clk 0:00:31.3]} 50. Be5 {[%clk 0:00:06.1]} 50... Rd8 {[%clk 0:00:20]} 51.
Nxh5 {[%clk 0:00:04.5]} 51... Rd2 {[%clk 0:00:20.9]} 52. f3 {[%clk 0:00:03.4]}
52... Rxc2 {[%clk 0:00:21.3]} 53. Kg4 {[%clk 0:00:04.9]} 53... Kd5 {[%clk
0:00:22.3]} 54. Bg7 {[%clk 0:00:03.7]} 54... Rg2+ {[%clk 0:00:23.6]} 55. Kf5
{[%clk 0:00:04.1]} 55... Kc4 {[%clk 0:00:24.7]} 56. Bf6 {[%clk 0:00:04.5]} 56...
Kb3 {[%clk 0:00:25.3]} 57. Be7 {[%clk 0:00:03.5]} 57... c4 {[%clk 0:00:25.9]}
58. Nf6 {[%clk 0:00:03.5]} 58... Rxb2 {[%clk 0:00:24.2]} 59. Kxg5 {[%clk
0:00:04.9]} 59... Rg2+ {[%clk 0:00:25.3]} 60. Kf4 {[%clk 0:00:05.6]} 60... c3
{[%clk 0:00:27.2]} 61. Bc5 {[%clk 0:00:05.3]} 61... c2 {[%clk 0:00:23.9]} 62.
Be3 {[%clk 0:00:06.4]} 62... Rg1 {[%clk 0:00:24.2]} 63. Bxg1 {[%clk 0:00:04]}
63... c1=Q+ {[%clk 0:00:25.4]} 64. Be3 {[%clk 0:00:05.4]} 64... Qc7+ {[%clk
0:00:25.9]} 65. Kf5 {[%clk 0:00:05.6]} 65... Ka2 {[%clk 0:00:26.7]} 66. Nd5
{[%clk 0:00:05.9]} 66... Qf7+ {[%clk 0:00:25.9]} 67. Ke4 {[%clk 0:00:07.2]}
67... b3 {[%clk 0:00:26]} 68. Nc3+ {[%clk 0:00:07.2]} 68... Ka3 {[%clk
0:00:26.9]} 69. Bc5+ {[%clk 0:00:08.4]} 69... Kb2 {[%clk 0:00:26.3]} 70. Bd4
{[%clk 0:00:10.3]} 70... Kc2 {[%clk 0:00:25.3]} 71. Nd5 {[%clk 0:00:11.8]} 71...
b2 {[%clk 0:00:22.4]} 72. Ne3+ {[%clk 0:00:12.1]} 72... Kb3 {[%clk 0:00:21.5]}
73. Bxb2 {[%clk 0:00:12.5]} 73... Kxb2 {[%clk 0:00:23.1]} 74. f4 {[%clk
0:00:13.9]} 74... Qe6+ {[%clk 0:00:22.8]} 75. Kf3 {[%clk 0:00:14.7]} 75... Kc3
{[%clk 0:00:23.6]} 76. f5 {[%clk 0:00:16.1]} 76... Qc6+ {[%clk 0:00:22.5]} 77.
Kf4 {[%clk 0:00:16.7]} 77... Kd3 {[%clk 0:00:23.5]} 78. Ng4 {[%clk 0:00:18]}
78... Kd4 {[%clk 0:00:20.1]} 79. f6 {[%clk 0:00:17.6]} 79... Qe6 {[%clk
0:00:18.2]} 80. Kg5 {[%clk 0:00:18.6]} 80... Ke4 {[%clk 0:00:17.1]} 81. Nh6
{[%clk 0:00:18.4]} 81... Ke5 {[%clk 0:00:07.6]} 82. f7 {[%clk 0:00:18.7]} 82...
Qf6+ {[%clk 0:00:07.6]} 83. Kh5 {[%clk 0:00:20]} 83... Ke6 {[%clk 0:00:07]} 0-1

[Event "***Titled Tuesday 3|2 Blitz"]
[Site "Chess.com"]
[Date "2017.02.07"]
[Round "5"]
[White "SavelijTartakover"]
[Black "IM_Michal_Luch"]
[Result "1-0"]
[WhiteElo "2530"]
[BlackElo "2385"]
[TimeControl "180+2"]
[EndTime "14:16:13 PST"]
[Termination "SavelijTartakover won by resignation"]

1. d4 {[%clk 0:03:02]} 1... Nf6 {[%clk 0:03:02]} 2. c4 {[%clk 0:03:01.4]} 2...
e6 {[%clk 0:03:03.2]} 3. Nf3 {[%clk 0:02:59.9]} 3... d5 {[%clk 0:03:04.2]} 4.
Bg5 {[%clk 0:02:59.6]} 4... Be7 {[%clk 0:03:01.5]} 5. e3 {[%clk 0:02:59.2]} 5...
O-O {[%clk 0:03:01.8]} 6. Nc3 {[%clk 0:03:00.6]} 6... h6 {[%clk 0:03:03.1]} 7.
Bxf6 {[%clk 0:03:01.3]} 7... Bxf6 {[%clk 0:03:03.3]} 8. Qc2 {[%clk 0:02:55.5]}
8... b6 {[%clk 0:03:01.9]} 9. h4 {[%clk 0:02:52.2]} 9... Bb7 {[%clk 0:02:58.6]}
10. cxd5 {[%clk 0:02:52.3]} 10... exd5 {[%clk 0:02:53.3]} 11. g4 {[%clk
0:02:52.4]} 11... g6 {[%clk 0:02:44.7]} 12. O-O-O {[%clk 0:02:51.8]} 12... Bg7
{[%clk 0:02:44.4]} 13. g5 {[%clk 0:02:51.7]} 13... h5 {[%clk 0:02:44.9]} 14. Ne5
{[%clk 0:02:48.9]} 14... c5 {[%clk 0:02:36.3]} 15. f4 {[%clk 0:02:49.3]} 15...
cxd4 {[%clk 0:02:35.2]} 16. exd4 {[%clk 0:02:48.9]} 16... Nc6 {[%clk 0:02:32.8]}
17. Bg2 {[%clk 0:02:49.2]} 17... Ne7 {[%clk 0:02:21.8]} 18. Kb1 {[%clk
0:02:46.9]} 18... Rc8 {[%clk 0:02:20.9]} 19. Qd3 {[%clk 0:02:45.8]} 19... a6
{[%clk 0:02:21.1]} 20. Bh3 {[%clk 0:02:45.7]} 20... b5 {[%clk 0:02:17.1]} 21.
Bxc8 {[%clk 0:02:43.6]} 21... Qxc8 {[%clk 0:02:18.1]} 22. Rc1 {[%clk 0:02:43]}
22... Qd8 {[%clk 0:02:12]} 23. Ne2 {[%clk 0:02:42.9]} 23... Bc8 {[%clk
0:02:07.7]} 24. Ng3 {[%clk 0:02:40.8]} 24... Nf5 {[%clk 0:02:08.2]} 25. Rhe1
{[%clk 0:02:25.8]} 25... Nxh4 {[%clk 0:02:04.5]} 26. Nc6 {[%clk 0:02:24.5]}
26... Qd7 {[%clk 0:01:51.5]} 27. Ne7+ {[%clk 0:02:20.2]} 27... Kh7 {[%clk
0:01:53]} 28. Nxh5 {[%clk 0:02:06.7]} 28... Nf5 {[%clk 0:01:33.5]} 29. Nf6+
{[%clk 0:01:58.8]} 29... Bxf6 {[%clk 0:01:32.9]} 30. gxf6 {[%clk 0:02:00.7]}
30... Nxe7 {[%clk 0:01:32.1]} 31. fxe7 {[%clk 0:01:47.1]} 31... Re8 {[%clk
0:01:33.1]} 32. Ka1 {[%clk 0:01:38]} 32... Kg7 {[%clk 0:01:15.3]} 33. Qe3 {[%clk
0:01:35]} 33... f6 {[%clk 0:01:13.6]} 34. Rc5 {[%clk 0:01:18.6]} 34... Qf5
{[%clk 0:01:12.1]} 35. a3 {[%clk 0:01:14.7]} 35... Kf7 {[%clk 0:01:06.4]} 36.
Rc7 {[%clk 0:01:04.3]} 36... Qg4 {[%clk 0:01:01.7]} 37. Rc6 {[%clk 0:00:41.6]}
37... Bf5 {[%clk 0:00:58.6]} 38. Rxa6 {[%clk 0:00:39.4]} 38... Be4 {[%clk
0:00:59.6]} 39. Ra7 {[%clk 0:00:37.4]} 39... Qg2 {[%clk 0:00:54.5]} 40. Qc1
{[%clk 0:00:35.7]} 40... Qf2 {[%clk 0:00:52.1]} 41. Rd1 {[%clk 0:00:29.7]} 41...
Qf3 {[%clk 0:00:46.5]} 42. Qd2 {[%clk 0:00:26.4]} 42... Qb3 {[%clk 0:00:46.7]}
43. Rc1 {[%clk 0:00:25.6]} 43... Rxe7 {[%clk 0:00:31.5]} 44. Rxe7+ {[%clk
0:00:19.3]} 44... Kxe7 {[%clk 0:00:33.4]} 45. Qb4+ {[%clk 0:00:19.9]} 45... Qxb4
{[%clk 0:00:34.2]} 46. axb4 {[%clk 0:00:21.8]} 46... g5 {[%clk 0:00:36]} 47.
fxg5 {[%clk 0:00:21.1]} 47... fxg5 {[%clk 0:00:37.9]} 48. Rg1 {[%clk 0:00:20.6]}
48... Kf6 {[%clk 0:00:38.9]} 49. b3 {[%clk 0:00:21.5]} 49... Kf5 {[%clk
0:00:38.8]} 50. Kb2 {[%clk 0:00:22.9]} 50... Kf4 {[%clk 0:00:39]} 51. Kc3 {[%clk
0:00:24.1]} 51... g4 {[%clk 0:00:40.3]} 52. Kd2 {[%clk 0:00:23.9]} 52... Kf3
{[%clk 0:00:35.9]} 53. Rf1+ {[%clk 0:00:22.6]} 53... Kg2 {[%clk 0:00:36.3]} 54.
Rf6 {[%clk 0:00:23.4]} 54... g3 {[%clk 0:00:37.3]} 55. Ke3 {[%clk 0:00:24.8]}
55... Kh3 {[%clk 0:00:36.8]} 56. Rh6+ {[%clk 0:00:23.8]} 56... Kg4 {[%clk
0:00:36.4]} 57. Rb6 {[%clk 0:00:22.8]} 57... g2 {[%clk 0:00:34.6]} 58. Kf2
{[%clk 0:00:23]} 58... Kh3 {[%clk 0:00:35.4]} 59. Kg1 {[%clk 0:00:23.5]} 59...
Bd3 {[%clk 0:00:35]} 60. Rd6 {[%clk 0:00:18.4]} 60... Be4 {[%clk 0:00:35.6]} 61.
Rb6 {[%clk 0:00:18.8]} 61... Bd3 {[%clk 0:00:36.6]} 62. Rb8 {[%clk 0:00:19.1]}
62... Be2 {[%clk 0:00:23.7]} 63. Rh8+ {[%clk 0:00:16.4]} 63... Kg3 {[%clk
0:00:24]} 64. Rg8+ {[%clk 0:00:17.1]} 64... Bg4 {[%clk 0:00:25.1]} 65. Rd8
{[%clk 0:00:13.2]} 65... Bf3 {[%clk 0:00:25.2]} 66. Rb8 {[%clk 0:00:11.9]} 66...
Be2 {[%clk 0:00:25.8]} 67. Rb7 {[%clk 0:00:12.1]} 67... Kf3 {[%clk 0:00:21.3]}
68. Rg7 {[%clk 0:00:10.2]} 68... Bf1 {[%clk 0:00:21.5]} 69. Re7 {[%clk
0:00:10.4]} 69... Bd3 {[%clk 0:00:20.6]} 70. Re5 {[%clk 0:00:06.3]} 70... Be4
{[%clk 0:00:20.6]} 71. Re8 {[%clk 0:00:07.4]} 71... Ke3 {[%clk 0:00:21.7]} 72.
Rb8 {[%clk 0:00:07.9]} 72... Bd3 {[%clk 0:00:20.8]} 73. Kxg2 {[%clk 0:00:08.9]}
73... Kxd4 {[%clk 0:00:22.3]} 74. Rc8 {[%clk 0:00:09.1]} 74... Ke3 {[%clk
0:00:21.2]} 75. Re8+ {[%clk 0:00:09.5]} 75... Kd2 {[%clk 0:00:20.9]} 76. Kf2
{[%clk 0:00:09.8]} 76... d4 {[%clk 0:00:21.8]} 77. Rc8 {[%clk 0:00:08.5]} 77...
Bc2 {[%clk 0:00:22.2]} 78. Rc5 {[%clk 0:00:08.8]} 78... Bd3 {[%clk 0:00:22.5]}
79. Kf3 {[%clk 0:00:09.4]} 79... Bc2 {[%clk 0:00:15.7]} 80. Rxb5 {[%clk
0:00:07.9]} 80... d3 {[%clk 0:00:17.2]} 81. Rb8 {[%clk 0:00:07.4]} 81... Bxb3
{[%clk 0:00:17.7]} 82. b5 {[%clk 0:00:08]} 82... Ke1 {[%clk 0:00:17.5]} 83. Re8+
{[%clk 0:00:07.2]} 83... Kf1 {[%clk 0:00:15.2]} 84. Ke3 {[%clk 0:00:07.3]} 84...
Bc4 {[%clk 0:00:15.1]} 85. b6 {[%clk 0:00:07.5]} 85... Ba6 {[%clk 0:00:15.1]}
86. Kd2 {[%clk 0:00:08.1]} 86... Kf2 {[%clk 0:00:15.9]} 87. Re7 {[%clk 0:00:09]}
87... Kf3 {[%clk 0:00:17]} 88. b7 {[%clk 0:00:10.1]} 1-0

[Event "***Titled Tuesday 3|2 Blitz"]
[Site "Chess.com"]
[Date "2017.02.07"]
[Round "5"]
[White "Mornar1951"]
[Black "GMHess"]
[Result "0-1"]
[WhiteElo "2556"]
[BlackElo "2594"]
[TimeControl "180+2"]
[EndTime "14:16:15 PST"]
[Termination "GMHess won by resignation"]

1. d4 {[%clk 0:03:02]} 1... Nf6 {[%clk 0:02:59.8]} 2. c4 {[%clk 0:03:02.3]} 2...
e6 {[%clk 0:02:59.3]} 3. Nf3 {[%clk 0:03:02.4]} 3... d5 {[%clk 0:03:00.1]} 4. g3
{[%clk 0:03:03]} 4... dxc4 {[%clk 0:03:00.4]} 5. Qa4+ {[%clk 0:03:02.9]} 5...
Bd7 {[%clk 0:02:54.7]} 6. Qxc4 {[%clk 0:03:02.3]} 6... Bc6 {[%clk 0:02:54.9]} 7.
Bg2 {[%clk 0:03:02.8]} 7... Be7 {[%clk 0:02:56.4]} 8. Nc3 {[%clk 0:03:02.6]}
8... O-O {[%clk 0:02:57.4]} 9. O-O {[%clk 0:03:02.8]} 9... a6 {[%clk 0:02:49.3]}
10. Qd3 {[%clk 0:02:52.1]} 10... Nbd7 {[%clk 0:02:45.6]} 11. Re1 {[%clk
0:02:46.4]} 11... b5 {[%clk 0:02:29.8]} 12. Bg5 {[%clk 0:02:45.9]} 12... b4
{[%clk 0:02:28.3]} 13. Nd1 {[%clk 0:02:41.7]} 13... h6 {[%clk 0:02:15.4]} 14.
Bxf6 {[%clk 0:02:42.5]} 14... Bxf6 {[%clk 0:02:14.5]} 15. Ng5 {[%clk 0:02:29.3]}
15... hxg5 {[%clk 0:02:04.5]} 16. Bxc6 {[%clk 0:02:30.9]} 16... Rb8 {[%clk
0:01:52.4]} 17. Ne3 {[%clk 0:02:29]} 17... Rb6 {[%clk 0:01:48.4]} 18. Rac1
{[%clk 0:02:17.4]} 18... Nb8 {[%clk 0:01:48.4]} 19. Be4 {[%clk 0:01:57.1]} 19...
Rd6 {[%clk 0:01:33.5]} 20. d5 {[%clk 0:01:44.2]} 20... Bxb2 {[%clk 0:01:31.4]}
21. Nc4 {[%clk 0:01:29.1]} 21... exd5 {[%clk 0:01:10]} 22. Bh7+ {[%clk
0:01:23.9]} 22... Kh8 {[%clk 0:01:11.1]} 23. Nxd6 {[%clk 0:01:24.9]} 23... Qxd6
{[%clk 0:01:07.8]} 24. Rcd1 {[%clk 0:00:57.6]} 24... Bc3 {[%clk 0:01:06.9]} 25.
Rf1 {[%clk 0:00:58.2]} 25... g6 {[%clk 0:01:05.8]} 26. Bxg6 {[%clk 0:00:59.2]}
26... fxg6 {[%clk 0:00:50.6]} 27. Qxd5 {[%clk 0:00:57.1]} 27... Qxd5 {[%clk
0:00:42.9]} 28. Rxd5 {[%clk 0:00:59]} 28... Nc6 {[%clk 0:00:41.1]} 29. Rxg5
{[%clk 0:00:57.6]} 29... Nd4 {[%clk 0:00:37.6]} 30. Rxg6 {[%clk 0:00:53]} 30...
Rf6 {[%clk 0:00:31.4]} 31. Rg4 {[%clk 0:00:34.5]} 31... Nxe2+ {[%clk 0:00:32.4]}
32. Kg2 {[%clk 0:00:36]} 32... c5 {[%clk 0:00:28.3]} 33. Rd1 {[%clk 0:00:31.7]}
33... Bd4 {[%clk 0:00:21.1]} 34. f4 {[%clk 0:00:26.8]} 34... Nc3 {[%clk
0:00:18.1]} 35. Re1 {[%clk 0:00:28]} 35... Nd5 {[%clk 0:00:17.8]} 36. Kf3 {[%clk
0:00:25.6]} 36... Kh7 {[%clk 0:00:15]} 37. Re8 {[%clk 0:00:23]} 37... Rg6 {[%clk
0:00:13.2]} 38. Rh4+ {[%clk 0:00:22.2]} 38... Rh6 {[%clk 0:00:14.4]} 39. Rxh6+
{[%clk 0:00:21.9]} 39... Kxh6 {[%clk 0:00:16.3]} 40. Re6+ {[%clk 0:00:23.2]}
40... Kg7 {[%clk 0:00:17.5]} 41. Rxa6 {[%clk 0:00:24.1]} 41... Nc3 {[%clk
0:00:18.7]} 42. g4 {[%clk 0:00:21.5]} 42... Kf7 {[%clk 0:00:09.9]} 43. g5 {[%clk
0:00:22]} 43... c4 {[%clk 0:00:09]} 44. f5 {[%clk 0:00:20.6]} 44... b3 {[%clk
0:00:08.3]} 45. axb3 {[%clk 0:00:20.7]} 45... cxb3 {[%clk 0:00:10.2]} 46. g6+
{[%clk 0:00:13.4]} 46... Kg7 {[%clk 0:00:10.6]} 47. Rd6 {[%clk 0:00:07.2]} 47...
b2 {[%clk 0:00:10.2]} 48. Rd7+ {[%clk 0:00:08.8]} 48... Kh6 {[%clk 0:00:06.3]}
49. Kg4 {[%clk 0:00:06.6]} 49... Bg7 {[%clk 0:00:06.2]} 50. Rd3 {[%clk
0:00:05.7]} 50... Bf6 {[%clk 0:00:04.8]} 51. Rd7 {[%clk 0:00:05.1]} 51... Bg7
{[%clk 0:00:05.9]} 52. Rd3 {[%clk 0:00:05.9]} 52... Bd4 {[%clk 0:00:05.9]} 53.
Rh3+ {[%clk 0:00:03.5]} 53... Kg7 {[%clk 0:00:06.6]} 54. Rh7+ {[%clk 0:00:05.4]}
54... Kg8 {[%clk 0:00:08]} 55. Rb7 {[%clk 0:00:04.3]} 55... b1=Q {[%clk
0:00:09.3]} 56. Rxb1 {[%clk 0:00:05.3]} 56... Nxb1 {[%clk 0:00:11.2]} 57. h4
{[%clk 0:00:06.6]} 57... Kg7 {[%clk 0:00:11.7]} 58. Kg5 {[%clk 0:00:07.3]} 58...
Bf6+ {[%clk 0:00:11.5]} 59. Kg4 {[%clk 0:00:08.7]} 59... Nd2 {[%clk 0:00:12.4]}
60. h5 {[%clk 0:00:10.2]} 60... Kh6 {[%clk 0:00:13.6]} 61. Kf4 {[%clk
0:00:10.2]} 61... Kxh5 {[%clk 0:00:13.5]} 62. Ke3 {[%clk 0:00:11.9]} 62... Nc4+
{[%clk 0:00:14.4]} 63. Ke4 {[%clk 0:00:13.2]} 63... Kg5 {[%clk 0:00:11.6]} 64.
Kd5 {[%clk 0:00:14.3]} 64... Ne3+ {[%clk 0:00:12.9]} 65. Ke6 {[%clk 0:00:14.5]}
65... Nxf5 {[%clk 0:00:14.8]} 66. Kf7 {[%clk 0:00:15.9]} 66... Ba1 {[%clk
0:00:13.5]} 67. g7 {[%clk 0:00:16.4]} 67... Bxg7 {[%clk 0:00:13.5]} 68. Ke6
{[%clk 0:00:18.3]} 68... Kg6 {[%clk 0:00:10.9]} 69. Kd5 {[%clk 0:00:20.2]} 69...
Kf6 {[%clk 0:00:11.3]} 70. Ke4 {[%clk 0:00:21.2]} 70... Bh6 {[%clk 0:00:09.1]}
71. Kd5 {[%clk 0:00:22.1]} 71... Bg5 {[%clk 0:00:09.3]} 72. Ke4 {[%clk
0:00:23.4]} 72... Ke6 {[%clk 0:00:10.6]} 73. Kf3 {[%clk 0:00:23.8]} 73... Ke5
{[%clk 0:00:11.7]} 74. Kg4 {[%clk 0:00:25.7]} 74... Bd2 {[%clk 0:00:10.6]} 75.
Kf3 {[%clk 0:00:26.4]} 75... Nd4+ {[%clk 0:00:11]} 76. Kg4 {[%clk 0:00:28.3]}
76... Kf6 {[%clk 0:00:09.3]} 77. Kg3 {[%clk 0:00:27.9]} 77... Kf5 {[%clk
0:00:10.8]} 78. Kh3 {[%clk 0:00:28.9]} 78... Kf4 {[%clk 0:00:09.1]} 79. Kh4
{[%clk 0:00:30.4]} 79... Nf5+ {[%clk 0:00:09.6]} 80. Kh3 {[%clk 0:00:31.5]}
80... Be3 {[%clk 0:00:10.6]} 81. Kg2 {[%clk 0:00:32.2]} 81... Kg4 {[%clk
0:00:12.2]} 82. Kh2 {[%clk 0:00:32.2]} 82... Nh4 {[%clk 0:00:10.8]} 83. Kh1
{[%clk 0:00:32.8]} 83... Bf4 {[%clk 0:00:12]} 84. Kg1 {[%clk 0:00:33.7]} 84...
Kf3 {[%clk 0:00:12.3]} 85. Kh1 {[%clk 0:00:35.6]} 85... Nf5 {[%clk 0:00:08.5]}
86. Kg1 {[%clk 0:00:37.5]} 86... Ng3 {[%clk 0:00:08.6]} 87. Kh2 {[%clk
0:00:37.8]} 87... Be3 {[%clk 0:00:10.1]} 88. Kh3 {[%clk 0:00:38.7]} 88... Bg1
{[%clk 0:00:12]} 89. Kh4 {[%clk 0:00:40.3]} 89... Ne4 {[%clk 0:00:13]} 90. Kh3
{[%clk 0:00:42.2]} 90... Ng5+ {[%clk 0:00:13.8]} 91. Kh4 {[%clk 0:00:43.8]}
91... Kf4 {[%clk 0:00:14]} 92. Kh5 {[%clk 0:00:45.4]} 92... Kf5 {[%clk 0:00:15]}
93. Kh4 {[%clk 0:00:46.4]} 93... Bf2+ {[%clk 0:00:16.3]} 94. Kh5 {[%clk
0:00:48.3]} 94... Be1 {[%clk 0:00:09.3]} 95. Kh6 {[%clk 0:00:49.2]} 95... Ne6
{[%clk 0:00:08.4]} 96. Kh5 {[%clk 0:00:49]} 96... Ng7+ {[%clk 0:00:09.2]} 97.
Kh6 {[%clk 0:00:50.4]} 97... Kf6 {[%clk 0:00:09.1]} 98. Kh7 {[%clk 0:00:51.7]}
98... Bd2 {[%clk 0:00:10]} 99. Kg8 {[%clk 0:00:52.9]} 99... Kg6 {[%clk 0:00:11]}
100. Kf8 {[%clk 0:00:54]} 100... Bb4+ {[%clk 0:00:12.5]} 101. Kg8 {[%clk
0:00:55.4]} 101... Nf5 {[%clk 0:00:11.4]} 102. Kh8 {[%clk 0:00:56.1]} 102... Ba3
{[%clk 0:00:12.1]} 103. Kg8 {[%clk 0:00:57.2]} 103... Nh6+ {[%clk 0:00:13.6]}
0-1

[Event "***Titled Tuesday 3|2 Blitz"]
[Site "Chess.com"]
[Date "2017.02.07"]
[Round "6"]
[White "EltajSafarli"]
[Black "E-Shaposhnikov"]
[Result "1-0"]
[WhiteElo "2847"]
[BlackElo "2754"]
[TimeControl "180+2"]
[EndTime "14:20:49 PST"]
[Termination "EltajSafarli won by resignation"]

1. e4 {[%clk 0:03:02]} 1... c5 {[%clk 0:02:59.6]} 2. Nf3 {[%clk 0:03:02.4]} 2...
e6 {[%clk 0:03:00.3]} 3. Nc3 {[%clk 0:03:04.3]} 3... a6 {[%clk 0:03:01.1]} 4. g3
{[%clk 0:03:04.2]} 4... Nc6 {[%clk 0:03:01.4]} 5. Bg2 {[%clk 0:03:05.2]} 5...
Nf6 {[%clk 0:03:00.2]} 6. d4 {[%clk 0:03:01.7]} 6... cxd4 {[%clk 0:03:00.7]} 7.
Nxd4 {[%clk 0:03:03.6]} 7... Qc7 {[%clk 0:03:02.2]} 8. O-O {[%clk 0:03:02.2]}
8... d6 {[%clk 0:02:56.9]} 9. Re1 {[%clk 0:03:00.9]} 9... Rb8 {[%clk 0:02:56.7]}
10. Nxc6 {[%clk 0:02:33.7]} 10... bxc6 {[%clk 0:02:57.6]} 11. e5 {[%clk
0:02:35.6]} 11... dxe5 {[%clk 0:02:43]} 12. Rxe5 {[%clk 0:02:37.5]} 12... Bd6
{[%clk 0:02:33.2]} 13. Re1 {[%clk 0:02:38.1]} 13... O-O {[%clk 0:02:34.8]} 14.
b3 {[%clk 0:02:32.4]} 14... Bb7 {[%clk 0:02:33]} 15. Bb2 {[%clk 0:02:29.1]}
15... c5 {[%clk 0:02:34.3]} 16. Bxb7 {[%clk 0:02:26]} 16... Rxb7 {[%clk
0:02:36.2]} 17. Ne4 {[%clk 0:02:18.4]} 17... Nxe4 {[%clk 0:02:27.7]} 18. Rxe4
{[%clk 0:02:20.3]} 18... Rd8 {[%clk 0:02:25.2]} 19. Qe2 {[%clk 0:02:21.4]} 19...
Qc6 {[%clk 0:02:17.5]} 20. Rg4 {[%clk 0:02:19.4]} 20... Bf8 {[%clk 0:02:05.7]}
21. Bf6 {[%clk 0:02:19.9]} 21... Rd5 {[%clk 0:02:03.9]} 22. Rxg7+ {[%clk
0:02:17.2]} 22... Bxg7 {[%clk 0:02:04.2]} 23. Qg4 {[%clk 0:02:18.3]} 1-0

[Event "***Titled Tuesday 3|2 Blitz"]
[Site "Chess.com"]
[Date "2017.02.07"]
[Round "6"]
[White "Divertissement"]
[Black "Jahonas"]
[Result "1-0"]
[WhiteElo "2441"]
[BlackElo "2142"]
[TimeControl "180+2"]
[EndTime "14:21:20 PST"]
[Termination "Divertissement won by resignation"]

1. d4 {[%clk 0:03:02]} 1... Nf6 {[%clk 0:03:00.6]} 2. Nf3 {[%clk 0:03:00.8]}
2... g6 {[%clk 0:03:00.7]} 3. Bg5 {[%clk 0:03:00.3]} 3... Bg7 {[%clk 0:03:01]}
4. Nbd2 {[%clk 0:02:57.3]} 4... d5 {[%clk 0:03:00.9]} 5. e3 {[%clk 0:02:57]}
5... c6 {[%clk 0:03:02.1]} 6. Be2 {[%clk 0:02:55]} 6... h6 {[%clk 0:03:01.8]} 7.
Bh4 {[%clk 0:02:53.6]} 7... Bf5 {[%clk 0:03:01.7]} 8. O-O {[%clk 0:02:54.6]}
8... O-O {[%clk 0:03:01.6]} 9. c4 {[%clk 0:02:56.1]} 9... Nbd7 {[%clk
0:03:02.6]} 10. Qb3 {[%clk 0:02:56.8]} 10... dxc4 {[%clk 0:02:58.5]} 11. Nxc4
{[%clk 0:02:54.9]} 11... Nb6 {[%clk 0:02:58.5]} 12. Na5 {[%clk 0:02:47.1]} 12...
Be6 {[%clk 0:02:55.1]} 13. Qa3 {[%clk 0:02:37.3]} 13... g5 {[%clk 0:02:23.9]}
14. Bg3 {[%clk 0:02:37.3]} 14... Nfd5 {[%clk 0:02:24.2]} 15. Nxb7 {[%clk
0:02:31]} 15... Qc8 {[%clk 0:02:24]} 16. Nc5 {[%clk 0:02:30.7]} 16... f5 {[%clk
0:02:23.6]} 17. Be5 {[%clk 0:02:29.5]} 17... g4 {[%clk 0:02:12]} 18. Nd2 {[%clk
0:02:27]} 18... Bxe5 {[%clk 0:02:12.3]} 19. dxe5 {[%clk 0:02:28.9]} 19... Kg7
{[%clk 0:02:07.8]} 20. Ndb3 {[%clk 0:02:29.3]} 20... a5 {[%clk 0:02:07.1]} 21.
Nd4 {[%clk 0:02:29.9]} 21... Bg8 {[%clk 0:02:04.9]} 22. e6 {[%clk 0:02:24.1]}
22... Nb4 {[%clk 0:02:02.9]} 23. Qc3 {[%clk 0:02:22.1]} 23... Kg6 {[%clk
0:01:59.3]} 24. e4 {[%clk 0:02:14.1]} 24... fxe4 {[%clk 0:01:54.8]} 25. Bxg4
{[%clk 0:02:13.2]} 25... N6d5 {[%clk 0:01:54.8]} 26. Qg3 {[%clk 0:02:00.4]} 1-0